bitfinex-derivatives/quotes_SOLF0:USTF0_20241208
["timestamp","ask_amount","ask_price","bid_price","bid_amount"]
[1733662091268,1.88,235.81,235.65,1.3755]
[1733662091468,2.1199,235.71,235.66,1.88]
[1733662091662,2.71,235.8,235.66,1.88]
[1733662092069,2.1198,235.71,235.66,4.0003]
[1733662092271,2.1198,235.71,235.66,1.88]
[1733662094372,1.88,235.76,235.66,4.0003]
[1733662094567,1.88,235.76,235.66,1.88]
[1733662094768,2.71,235.8,235.66,1.88]
[1733662094769,1.88,235.79,235.66,1.88]
[1733662095172,1.88,235.79,235.67,2.1201]
[1733662095173,2.1196,235.74,235.67,2.1201]
[1733662095569,2.1195,235.75,235.69,2.12]
[1733662095871,1.88,235.82,235.69,2.12]
[1733662097473,2.1196,235.74,235.69,2.12]
[1733662097671,2.7329,235.84,235.66,2.1203]
[1733662097672,1.88,235.77,235.66,2.1203]
[1733662097876,1.88,235.77,235.66,4.0003]
[1733662098275,2.1199,235.71,235.66,4.0003]
[1733662099185,1.88,235.77,235.66,1.88]
[1733662100472,2.1198,235.71,235.66,4.0003]
[1733662100975,2.1197,235.72,235.66,4.0003]
[1733662101976,2.1197,235.72,235.67,2.1202]
[1733662102286,2.1196,235.74,235.66,1.88]
[1733662102774,1.88,235.8,235.68,2.1201]
[1733662103079,1.88,235.8,235.66,1.88]
[1733662103575,2.1197,235.73,235.66,1.88]
[1733662103777,1.88,235.8,235.67,2.1201]
[1733662104379,1.88,235.8,235.66,1.88]
[1733662104576,1.88,235.81,235.66,1.88]
[1733662105378,2.1194,235.76,235.72,2.1197]
[1733662105579,1.88,235.81,235.72,2.1197]
[1733662105779,1.88,235.83,235.72,2.1197]
[1733662106375,1.88,235.83,235.71,1.88]
[1733662106581,65.69322212,235.84,235.71,1.88]
[1733662106981,65.69322212,235.84,235.76,2.1194]
[1733662107481,2.119,235.8,235.74,2.1195]
[1733662108280,65.69322212,235.84,235.74,2.1195]
[1733662108476,2.1191,235.79,235.74,2.1195]
[1733662108883,1.88,235.94,235.72,2.701]
[1733662109085,1.88,235.94,235.73,1.06034509]
[1733662109284,1.88,235.94,235.72,2.701]
[1733662109478,1.88,235.93,235.72,2.701]
[1733662109684,2.1186,235.85,235.78,2.1192]
[1733662109984,1.4056,235.92,235.79,1.88]
[1733662110184,2.1189,235.82,235.76,2.1193]
[1733662110380,2.1189,235.82,235.72,2.701]
[1733662110381,1.88,235.88,235.72,2.701]
[1733662110589,2.6739,235.87,235.72,1.3694]
[1733662110788,2.1188,235.83,235.73,3.9996]
[1733662111086,2.6739,235.87,235.72,1.3694]
[1733662111282,2.6739,235.87,235.74,1.88]
[1733662111589,2.1187,235.84,235.74,3.9995]
[1733662111785,2.6739,235.87,235.74,3.9995]
[1733662112388,2.6739,235.87,235.75,2.1195]
[1733662112688,2.6739,235.87,235.74,1.88]
[1733662112898,2.119,235.81,235.74,1.88]
[1733662113593,2.119,235.81,235.76,2.1194]
[1733662116592,4.5539,235.87,235.74,1.88]
[1733662116788,2.1188,235.83,235.74,1.88]
[1733662117294,1.4056,235.92,235.74,1.88]
[1733662117491,3.2856,235.92,235.75,1.3391]
[1733662117891,2.1185,235.86,235.81,2.1189]
[1733662118192,2.1185,235.86,235.82,1.88]
[1733662118496,1.4056,235.92,235.82,1.88]
[1733662119696,2.1183,235.88,235.83,2.1187]
[1733662121501,2.1182,235.9,235.84,2.1186]
[1733662121694,1.2822,235.94,235.82,1.88]
[1733662121893,2.1181,235.9,235.85,2.1186]
[1733662122199,1.2822,235.94,235.85,2.1186]
[1733662122593,2.118,235.92,235.85,2.1186]
[1733662122894,1.2822,235.94,235.85,2.1186]
[1733662123097,2.1182,235.89,235.84,2.1186]
[1733662124794,1.2822,235.94,235.82,1.88]
[1733662124989,2.6514,235.93,235.82,1.88]
[1733662125188,2.6514,235.93,235.8,2.1189]
[1733662125389,2.6514,235.93,235.81,1.88]
[1733662125904,2.1186,235.85,235.81,1.88]
[1733662126700,2.6514,235.93,235.81,1.88]
[1733662126895,2.6514,235.93,235.8,1.88]
[1733662127096,2.6514,235.93,235.79,1.88]
[1733662127893,2.1182,235.89,235.79,1.88]
[1733662128193,1.88,235.89,235.79,1.88]
[1733662128590,2.1188,235.83,235.79,1.88]
[1733662129201,2.1188,235.83,235.79,3.9991]
[1733662129701,2.1187,235.84,235.79,3.9991]
[1733662131610,1.88,235.89,235.8,1.88]
[1733662132300,1.88,235.89,235.73,1.3609]
[1733662132301,1.88,235.89,235.77,1.88]
[1733662133601,1.88,235.89,235.75,2.1195]
[1733662133602,1.88,235.89,235.76,1.88]
[1733662134200,1.88,235.89,235.76,3.9994]
[1733662135004,2.119,235.81,235.76,3.9994]
[1733662136804,2.1188,235.83,235.77,2.1193]
[1733662136997,1.88,235.89,235.76,1.88]
[1733662137202,1.88,235.92,235.76,1.88]
[1733662137601,1.88,235.91,235.76,1.88]
[1733662138598,2.1188,235.83,235.78,2.1192]
[1733662138905,1.88,235.91,235.73,1.3609]
[1733662139207,2.1191,235.8,235.74,1.88]
[1733662139708,1.88,235.91,235.74,1.88]
[1733662140406,2.1188,235.82,235.74,1.88]
[1733662141705,2.1188,235.82,235.77,2.1192]
[1733662142898,2.6514,235.93,235.74,1.88]
[1733662144314,2.1186,235.85,235.8,2.119]
[1733662144606,2.1186,235.85,235.81,1.88]
[1733662146609,2.6514,235.93,235.81,1.88]
[1733662146908,2.1184,235.87,235.82,2.1188]
[1733662147308,2.1182,235.9,235.84,2.1186]
[1733662147506,2.1182,235.9,235.81,1.88]
[1733662147906,1.3477,235.93,235.81,1.88]
[1733662147907,2.1182,235.89,235.84,2.1186]
[1733662149114,1.3477,235.93,235.85,1.86]
[1733662149307,1.3477,235.93,235.86,2.1184]
[1733662150209,2.118,235.91,235.86,2.1184]
[1733662152108,1.86,235.98,235.85,1.86]
[1733662152617,1.3849,236.0,235.85,1.86]
[1733662152808,2.1177,235.95,235.89,2.1181]
[1733662153009,2.1177,235.95,235.9,1.86]
[1733662153209,1.3849,236.0,235.9,1.86]
[1733662153406,2.7373,236.09,235.93,2.1178]
[1733662153605,1.86,236.08,235.9,1.86]
[1733662153903,2.1171,236.01,235.94,2.1177]
[1733662154105,2.1171,236.01,235.95,1.86]
[1733662154306,1.86,236.08,235.95,1.86]
[1733662154509,1.86,236.08,235.95,2.1177]
[1733662154717,1.86,236.08,235.96,1.86]
[1733662155614,2.1172,236.0,235.96,1.86]
[1733662157118,1.86,236.08,235.96,1.86]
[1733662158815,4.018,236.09,235.96,1.86]
[1733662159315,1.86,236.21,236.04,2.1168]
[1733662159509,3.1596,236.2,236.05,1.86]
[1733662159722,1.2996,236.2,236.05,1.86]
[1733662159912,2.116,236.14,236.06,2.1166]
[1733662160116,2.116,236.14,236.07,1.86]
[1733662160315,1.2996,236.2,236.07,1.86]
[1733662160517,1.2996,236.2,236.08,2.1165]
[1733662160518,2.1159,236.15,236.08,2.1165]
[1733662160710,2.1159,236.15,236.07,1.86]
[1733662161314,2.1157,236.17,236.07,1.86]
[1733662161715,1.2996,236.2,236.07,1.86]
[1733662161921,1.2996,236.2,236.08,2.634]
[1733662162112,1.86,236.24,236.08,2.634]
[1733662162313,1.86,236.3,236.08,2.634]
[1733662162516,1.86,236.29,236.09,1.3017]
[1733662163417,1.86,236.29,236.13,2.116]
[1733662163618,1.86,236.29,236.14,1.86]
[1733662164221,2.1155,236.2,236.14,1.86]
[1733662165125,1.86,236.29,236.14,1.86]
[1733662165322,1.86,236.28,236.13,1.86]
[1733662165722,2.1158,236.16,236.13,1.86]
[1733662166523,2.1156,236.18,236.12,1.86]
[1733662166723,4.0137,236.21,236.1,1.86]
[1733662167729,2.1158,236.16,236.1,1.86]
[1733662168223,4.0137,236.21,236.08,1.3556]
[1733662168528,4.0137,236.21,236.11,1.86]
[1733662169622,2.116,236.14,236.09,1.86]
[1733662169823,4.0137,236.21,236.09,1.86]
[1733662170221,2.1157,236.18,236.09,1.86]
[1733662170526,4.0137,236.21,236.09,1.86]
[1733662171022,4.0137,236.21,236.02,1.3377]
[1733662171229,4.0137,236.21,236.03,1.86]
[1733662171726,2.1164,236.09,236.03,1.86]
[1733662172727,2.1164,236.09,236.03,3.9769]
[1733662173522,2.1165,236.08,236.03,3.9769]
[1733662174229,2.1164,236.09,236.04,2.1168]
[1733662174625,2.1164,236.09,236.03,1.86]
[1733662174626,1.86,236.17,236.03,1.86]
[1733662174824,4.0137,236.21,236.03,3.2087]
[1733662175125,1.86,236.2,236.03,3.2087]
[1733662175319,1.86,236.2,236.06,2.1166]
[1733662175523,1.86,236.2,236.03,3.2087]
[1733662176423,2.1162,236.12,236.03,3.2087]
[1733662176631,2.1162,236.12,236.07,2.1166]
[1733662176826,1.86,236.2,236.08,1.92]
[1733662177029,1.86,236.2,236.08,4.0364]
[1733662177224,4.0137,236.21,236.08,1.92]
[1733662177422,2.7298,236.21,236.08,1.92]
[1733662177730,2.1157,236.17,236.08,1.92]
[1733662178325,2.1156,236.18,236.08,1.92]
[1733662178630,3.3069,236.26,236.08,1.92]
[1733662179022,2.1155,236.2,236.15,2.1158]
[1733662179220,2.1155,236.2,236.15,4.0358]
[1733662180025,3.3069,236.26,236.15,1.92]
[1733662180829,62.89528552,236.27,236.15,1.92]
[1733662181433,62.89528552,236.27,236.15,4.0358]
[1733662181629,1.92,236.27,236.15,1.92]
[1733662182033,1.3648,236.28,236.15,1.92]
[1733662182237,1.92,236.27,236.15,1.92]
[1733662182832,2.1154,236.21,236.15,4.0359]
[1733662183024,3.2182,236.27,236.15,4.0359]
[1733662183228,4.5111,236.27,236.15,4.0359]
[1733662183426,2.1154,236.2,236.15,4.0359]
[1733662184127,2.1156,236.18,236.1,2.1163]
[1733662184336,4.5111,236.27,236.11,1.92]
[1733662185432,2.1152,236.23,236.16,2.1157]
[1733662185638,4.5111,236.27,236.16,2.1157]
[1733662185933,1.92,236.26,236.12,1.92]
[1733662186138,2.1152,236.23,236.12,1.92]
[1733662187335,2.1151,236.25,236.12,1.92]
[1733662187541,2.5911,236.27,236.12,1.92]
[1733662187542,2.5911,236.27,236.13,2.6314]
[1733662187841,2.1151,236.24,236.13,2.6314]
[1733662188242,2.1151,236.24,236.14,1.05863221]
[1733662188539,2.1151,236.24,236.13,2.6314]
[1733662188733,2.1151,236.24,236.14,1.05860873]
[1733662188932,2.1151,236.24,236.13,2.6314]
[1733662189133,2.5911,236.27,236.14,1.0586036]
[1733662189345,2.5911,236.27,236.13,2.6314]
[1733662189735,2.5911,236.27,236.14,1.05862457]
[1733662189945,2.5911,236.27,236.13,2.6314]
[1733662190635,2.1152,236.23,236.13,2.6314]
[1733662191140,2.1152,236.23,236.14,1.05863481]
[1733662191340,1.92,236.3,236.13,2.6314]
[1733662191544,1.92,236.29,236.14,1.05863112]
[1733662191748,1.92,236.29,236.13,2.6314]
[1733662191946,2.1152,236.23,236.18,2.1155]
[1733662192142,2.1152,236.23,236.18,1.92]
[1733662192547,2.1153,236.21,236.18,1.92]
[1733662193441,2.1152,236.23,236.18,1.92]
[1733662193646,4.1138,236.28,236.18,1.92]
[1733662193847,48.3078,236.38,236.18,1.92]
[1733662193848,48.3078,236.38,236.18,4.0356]
[1733662194147,1.92,236.37,236.18,1.92]
[1733662194541,2.1149,236.27,236.22,2.1152]
[1733662194739,1.92,236.32,236.18,1.92]
[1733662195245,1.92,236.32,236.21,2.1153]
[1733662197048,1.92,236.32,236.19,2.1154]
[1733662197748,2.115,236.25,236.2,2.1154]
[1733662198149,1.92,236.33,236.18,1.92]
[1733662198452,2.1148,236.27,236.22,2.1152]
[1733662198843,1.92,236.34,236.23,1.92]
[1733662199050,4.0553,236.36,236.23,1.92]
[1733662199650,2.1145,236.31,236.25,2.115]
[1733662199843,4.0553,236.36,236.23,1.92]
[1733662201254,4.0553,236.36,236.14,1.3344]
[1733662201255,16.7753,236.36,236.14,2.1159]
[1733662201454,16.7753,236.36,236.15,2.11729832]
[1733662202453,4.2282,236.35,236.15,2.11729832]
[1733662202757,12.72,236.34,236.15,2.11729832]
[1733662203152,2.1158,236.16,236.15,2.11729832]
[1733662204162,2.1161,236.13,236.06,1.92]
[1733662204361,2.1161,236.13,236.07,1.05900462]
[1733662204563,2.1161,236.13,236.08,1.05900462]
[1733662204864,2.1161,236.13,236.04,1.92]
[1733662205654,3.9964,236.18,236.04,4.0368]
[1733662205655,2.1162,236.12,236.04,4.0368]
[1733662205851,2.1162,236.12,236.04,1.92]
[1733662206964,2.1162,236.12,236.07,2.1166]
[1733662207161,2.116,236.14,236.08,1.05903555]
[1733662207458,2.116,236.14,236.09,1.05903555]
[1733662207660,2.116,236.14,236.1,1.05903555]
[1733662207864,2.116,236.14,236.04,1.92]
[1733662208056,2.1161,236.13,236.07,2.1166]
[1733662208260,2.1161,236.13,236.08,2.75342481]
[1733662208458,2.1161,236.13,236.09,1.05900954]
[1733662208670,2.1161,236.13,236.1,1.05900954]
[1733662208965,1.92,236.19,236.04,1.92]
[1733662209162,1.92,236.19,236.03,0.10163479]
[1733662209163,1.92,236.19,236.05,9.54463512]
[1733662209361,1.92,236.19,236.06,3.81231756]
[1733662209666,1.92,236.19,236.07,3.81231756]
[1733662209862,1.92,236.19,236.08,3.81211927]
[1733662210068,1.92,236.19,236.09,1.0589771]
[1733662210269,1.92,236.19,236.05,1.92]
[1733662210467,1.92,236.19,236.06,3.81211794]
[1733662210662,1.92,236.19,236.07,3.81211794]
[1733662210864,2.1158,236.16,236.09,2.1164]
[1733662211168,1.92,236.19,236.09,2.1164]
[1733662211366,2.116,236.15,236.1,2.1163]
[1733662211966,1.3755,236.25,236.1,1.92]
[1733662212265,1.92,236.32,236.11,4.97590937]
[1733662212467,4.5844,236.32,236.19,2.1155]
[1733662213663,1.2781,236.31,236.17,4.0357]
[1733662214066,1.2781,236.31,236.17,1.92]
[1733662214568,1.92,236.3,236.17,1.92]
[1733662215971,2.1154,236.21,236.15,2.1158]
[1733662216168,2.1154,236.21,236.13,1.92]
[1733662216477,1.92,236.25,236.13,1.92]
[1733662216773,2.1153,236.22,236.17,2.1157]
[1733662216972,1.92,236.25,236.13,1.92]
[1733662217674,1.2781,236.31,236.13,1.92]
[1733662218868,2.1147,236.28,236.21,2.1153]
[1733662219174,1.2781,236.31,236.19,2.1]
[1733662219480,4.7644,236.32,236.23,2.1151]
[1733662219667,4.7644,236.32,236.2,2.1]
[1733662219870,2.1145,236.31,236.2,2.1]
[1733662220474,2.1145,236.3,236.22,2.1152]
[1733662220675,2.1145,236.3,236.2,2.1]
[1733662221275,2.6644,236.32,236.2,2.1]
[1733662221776,2.6644,236.32,236.24,2.115]
[1733662222583,2.1145,236.31,236.24,2.115]
[1733662222873,2.1145,236.31,236.2,2.1]
[1733662223478,1.3059,236.35,236.2,2.1]
[1733662223479,44.04,236.49,236.2,2.1]
[1733662223679,5.9866,236.48,236.21,2.6589]
[1733662223878,5.9866,236.48,236.28,2.1147]
[1733662224177,2.114,236.36,236.28,2.1147]
[1733662226080,2.1141,236.35,236.28,2.1147]
[1733662226277,2.1,236.39,236.26,2.1]
[1733662226478,2.1139,236.38,236.26,2.1]
[1733662226883,2.1139,236.38,236.3,2.1145]
[1733662227076,2.1139,236.37,236.26,2.1]
[1733662227479,2.1139,236.37,236.31,2.1144]
[1733662228777,3.8866,236.48,236.31,2.1]
[1733662228778,2.1,236.44,236.31,2.1]
[1733662229076,3.8866,236.48,236.31,2.1]
[1733662229279,2.1138,236.39,236.33,2.1143]
[1733662229777,2.1136,236.41,236.34,2.1141]
[1733662229981,2.1,236.44,236.34,2.1141]
[1733662230171,2.1,236.44,236.31,2.1]
[1733662230172,3.8866,236.48,236.31,2.1]
[1733662230377,2.1135,236.42,236.35,2.114]
[1733662230572,2.1,236.47,236.31,2.1]
[1733662230778,2.1,236.47,236.31,4.2144]
[1733662230779,2.1138,236.38,236.31,4.2144]
[1733662231078,2.1,236.42,236.21,3.9376]
[1733662231378,2.1,236.42,236.29,2.1146]
[1733662231379,2.114,236.36,236.29,2.1146]
[1733662231681,2.114,236.36,236.29,4.2146]
[1733662232388,2.114,236.36,236.3,2.1145]
[1733662232876,3.8866,236.48,236.29,2.1]
[1733662233278,3.8866,236.48,236.3,2.7103]
[1733662233480,3.8866,236.48,236.36,2.1139]
[1733662233679,3.8866,236.48,236.34,2.1]
[1733662234387,2.1136,236.41,236.34,2.1]
[1733662234584,3.8866,236.48,236.34,2.1]
[1733662234885,2.1136,236.41,236.34,4.2141]
[1733662235276,2.1136,236.41,236.34,2.1]
[1733662235477,2.1136,236.4,236.35,2.1141]
[1733662235782,3.8866,236.48,236.34,2.1]
[1733662235783,2.1,236.44,236.34,2.1]
[1733662235984,2.1136,236.41,236.33,2.1142]
[1733662236180,2.1,236.44,236.33,2.1142]
[1733662236384,2.1,236.44,236.32,2.1]
[1733662236781,2.1,236.44,236.3,3.9916]
[1733662237082,2.1,236.44,236.31,2.1]
[1733662237883,2.1,236.44,236.27,4.2147]
[1733662238489,2.1144,236.32,236.27,2.1]
[1733662239888,2.1,236.37,236.27,2.1]
[1733662240088,2.28,236.41,236.23,2.28]
[1733662240382,3.8866,236.48,236.23,2.28]
[1733662240581,2.1137,236.4,236.31,2.1144]
[1733662240888,2.28,236.42,236.29,2.28]
[1733662241189,2.28,236.44,236.29,2.28]
[1733662241586,2.1137,236.4,236.33,2.1142]
[1733662241887,2.28,236.44,236.33,2.1142]
[1733662242089,2.1135,236.41,236.34,2.1141]
[1733662244688,2.1135,236.41,236.3,2.6761]
[1733662244885,2.1135,236.42,236.3,3.9777]
[1733662245792,2.28,236.45,236.3,3.9777]
[1733662247094,2.1136,236.41,236.37,2.1139]
[1733662247288,2.28,236.45,236.37,2.1139]
[1733662248590,2.1135,236.42,236.37,2.1139]
[1733662248796,2.28,236.45,236.37,2.1139]
[1733662248984,3.8866,236.48,236.39,2.1137]
[1733662249689,2.28,236.57,236.44,2.1133]
[1733662249995,1.3401,236.56,236.44,2.1133]
[1733662250197,2.1127,236.51,236.44,2.1133]
[1733662250692,1.3401,236.56,236.44,2.1133]
[1733662251294,2.1128,236.5,236.43,2.1133]
[1733662252483,2.1128,236.5,236.44,2.1133]
[1733662252688,2.1127,236.51,236.44,2.1133]
[1733662252884,1.3401,236.56,236.44,2.1133]
[1733662254095,1.3401,236.56,236.45,2.1132]
[1733662254392,2.1126,236.52,236.42,2.28]
[1733662254594,2.1126,236.52,236.45,2.1131]
[1733662255293,2.1126,236.52,236.46,2.1131]
[1733662256592,2.1127,236.51,236.46,2.1131]
[1733662257094,2.1126,236.53,236.48,2.1129]
[1733662257296,1.3401,236.56,236.48,2.1129]
[1733662257499,1.3401,236.56,236.47,2.28]
[1733662258197,2.28,236.67,236.47,2.28]
[1733662258496,2.6385,236.63,236.47,2.28]
[1733662259207,2.1123,236.56,236.5,2.1127]
[1733662259400,2.6385,236.63,236.47,2.28]
[1733662260103,2.1122,236.56,236.5,2.1127]
[1733662260508,2.1123,236.55,236.49,2.1128]
[1733662261103,2.28,236.61,236.49,2.28]
[1733662261310,2.28,236.61,236.44,2.5857]
[1733662261505,2.28,236.61,236.44,3.5891]
[1733662261905,2.28,236.61,236.44,2.28]
[1733662262210,2.28,236.61,236.35,2.7937]
[1733662262404,1.4103,236.62,236.36,4.62645717]
[1733662262714,2.28,236.61,236.37,3.33748715]
[1733662263005,2.1132,236.46,236.38,2.1137]
[1733662263212,2.28,236.52,236.39,2.28]
[1733662263511,6.3402,236.51,236.39,2.28]
[1733662263707,2.1133,236.44,236.39,2.28]
[1733662263898,6.3402,236.51,236.37,2.28]
[1733662264306,6.3402,236.51,236.36,2.28]
[1733662266408,2.1136,236.41,236.36,2.28]
[1733662268607,2.1136,236.4,236.36,2.28]
[1733662268909,2.28,236.45,236.36,2.28]
[1733662269105,2.1138,236.39,236.36,2.28]
[1733662269303,2.28,236.45,236.36,2.28]
[1733662269609,2.28,236.45,236.32,2.28]
[1733662269807,2.28,236.45,236.3,1.289]
[1733662270313,2.28,236.45,236.31,2.1144]
[1733662270905,2.1139,236.38,236.31,2.1144]
[1733662271210,2.28,236.45,236.31,2.1144]
[1733662271407,2.28,236.45,236.3,1.289]
[1733662272306,2.1136,236.41,236.31,2.1144]
[1733662272514,2.28,236.45,236.31,2.1144]
[1733662272911,2.28,236.45,236.3,1.289]
[1733662273209,2.24,236.44,236.3,1.289]
[1733662274312,2.1132,236.45,236.34,2.1142]
[1733662274508,64.97941251,236.51,236.35,2.24]
[1733662274706,64.97941251,236.51,236.36,2.24]
[1733662274902,64.97941251,236.51,236.42,2.1134]
[1733662275108,2.24,236.54,236.42,2.24]
[1733662275419,2.24,236.57,236.42,2.24]
[1733662275708,4.0289,236.66,236.42,2.24]
[1733662275904,2.24,236.63,236.43,1.3292]
[1733662276107,2.1122,236.56,236.49,2.1128]
[1733662276308,2.11309272,236.62,236.49,2.24]
[1733662277713,2.11309272,236.62,236.43,3.5692]
[1733662279114,2.1124,236.55,236.47,2.113]
[1733662279309,2.11309272,236.62,236.43,3.5692]
[1733662279517,2.11309272,236.62,236.44,2.24]
[1733662279812,2.1122,236.56,236.44,2.24]
[1733662280111,2.11309272,236.62,236.44,2.24]
[1733662280315,2.1125,236.53,236.45,2.24]
[1733662280518,2.24,236.58,236.46,2.24]
[1733662280816,2.1128,236.5,236.43,3.4425]
[1733662281013,2.24,236.53,236.43,1.3292]
[1733662281318,2.24,236.53,236.41,2.24]
[1733662282411,2.24,236.57,236.41,2.24]
[1733662283504,2.11309272,236.62,236.41,2.24]
[1733662283505,2.24,236.56,236.41,2.24]
[1733662283705,2.11309272,236.62,236.41,2.24]
[1733662284216,2.1118,236.61,236.42,1.057144]
[1733662284416,2.11309272,236.62,236.43,1.057144]
[1733662284614,2.11309272,236.62,236.41,2.24]
[1733662284808,2.11309272,236.62,236.42,2.11421686]
[1733662285009,2.11309272,236.62,236.41,2.24]
[1733662285010,2.11309272,236.62,236.43,3.80551362]
[1733662285211,2.11309272,236.62,236.44,1.05710843]
[1733662285414,2.1109,236.71,236.45,2.1140533]
[1733662285611,2.1109,236.71,236.41,2.24]
[1733662285612,3.9749,236.75,236.46,5.1093292]
[1733662285811,3.9749,236.75,236.47,6.2051292]
[1733662286012,3.9749,236.75,236.48,2.1140533]
[1733662286208,3.9749,236.75,236.49,3.80466366]
[1733662286408,2.1108,236.72,236.66,2.1113]
[1733662286615,2.1108,236.72,236.46,1.3042]
[1733662286616,1.3225,236.75,236.64,2.4]
[1733662287112,1.3225,236.75,236.66,2.1113]
[1733662287508,2.748,236.89,236.64,2.4]
[1733662287709,3.7292,236.88,236.65,2.7096]
[1733662288111,3.7292,236.88,236.64,2.4]
[1733662288311,1.3292,236.88,236.64,2.4]
[1733662288514,2.4,236.87,236.64,2.4]
[1733662288711,2.4,236.87,236.65,1.3434]
[1733662289713,2.4,236.87,236.68,2.1111]
[1733662289917,2.4,236.87,236.65,1.3434]
[1733662290214,2.1109,236.71,236.65,1.3434]
[1733662290518,2.1109,236.71,236.64,2.4]
[1733662290717,2.1109,236.71,236.63,2.1115]
[1733662290912,2.4,236.77,236.6,2.4]
[1733662291212,2.1108,236.72,236.6,2.4]
[1733662291420,2.4,236.77,236.62,2.1117]
[1733662291421,1.3809,236.76,236.62,2.1117]
[1733662292011,2.111,236.71,236.62,2.1117]
[1733662292212,1.3809,236.76,236.6,2.4]
[1733662292410,2.1108,236.72,236.6,2.4]
[1733662292615,1.3809,236.76,236.6,2.4]
[1733662292815,1.3809,236.76,236.62,2.1116]
[1733662293012,1.3809,236.76,236.6,2.4]
[1733662293220,4.186,236.76,236.6,2.4]
[1733662293716,4.186,236.76,236.62,2.1117]
[1733662293920,4.186,236.76,236.6,2.4]
[1733662294117,2.1108,236.72,236.65,2.1114]
[1733662294313,2.1108,236.72,236.6,2.4]
[1733662295313,2.1111,236.69,236.6,2.4]
[1733662295714,4.186,236.76,236.6,2.4]
[1733662296218,4.186,236.76,236.57,2.6538]
[1733662296618,4.186,236.76,236.58,2.4]
[1733662297019,4.186,236.76,236.59,2.1119]
[1733662297020,2.1109,236.71,236.59,2.1119]
[1733662297224,4.186,236.76,236.59,2.1119]
[1733662297716,2.1113,236.66,236.59,2.1119]
[1733662298521,2.1112,236.68,236.6,2.1118]
[1733662298723,2.4,236.7,236.6,2.1118]
[1733662299825,2.4,236.71,236.61,2.1117]
[1733662300020,4.186,236.76,236.58,2.4]
[1733662300220,1.3809,236.76,236.58,2.4]
[1733662300623,2.1107,236.73,236.63,2.1115]
[1733662300820,1.3809,236.76,236.64,2.4]
[1733662301019,1.3809,236.76,236.65,2.4]
[1733662302621,2.1108,236.72,236.66,2.1113]
[1733662302822,5.1622,236.85,236.65,2.4]
[1733662303018,1.3506,236.84,236.66,2.6602]
[1733662303321,1.3506,236.84,236.69,2.111]
[1733662303717,1.3506,236.84,236.66,2.6602]
[1733662304029,2.1104,236.77,236.66,2.6602]
[1733662304325,2.1101,236.8,236.66,2.6602]
[1733662304521,1.3506,236.84,236.66,2.6602]
[1733662304724,3.7506,236.84,236.66,2.6602]
[1733662304923,2.1101,236.8,236.73,2.1106]
[1733662305120,2.1101,236.8,236.71,2.4]